fUSD/lending_fUSD_20250219
["ID","MTS","AMOUNT","RATE_DAILY","PERIOD"]
[353585235,1739940328309,-502.76636359,0.00016438,2]
[353585236,1739940328334,-151.0,0.00016438,2]
[353585237,1739940328363,-500.0,0.00016438,2]
[353585238,1739940328390,-500.0,0.00016438,2]
[353585239,1739940328418,-500.0,0.00016438,2]
[353585240,1739940328443,-500.0,0.00016438,2]
[353585241,1739940328467,-542.8,0.00016438,2]
[353585242,1739940328492,-501.95983989,0.00016438,2]
[353585243,1739940328516,-500.0,0.00016438,2]
[353585244,1739940328540,-500.0,0.00016438,2]
[353585245,1739940328564,-500.0,0.00016438,2]
[353585246,1739940328588,-500.0,0.00016438,2]
[353585247,1739940328613,-500.0,0.00016438,2]
[353585248,1739940328635,-500.0,0.00016438,2]
[353585249,1739940328660,-500.76399511,0.00016438,2]
[353585250,1739940328683,-151.0,0.00016438,2]
[353585251,1739940328708,-500.0,0.00016438,2]
[353585252,1739940328733,-151.0,0.00016438,2]
[353585253,1739940328758,-151.0,0.00016438,2]
[353585254,1739940328782,-151.0,0.00016438,2]
[353585255,1739940328805,-500.0,0.00016438,2]
[353585256,1739940328828,-503.59040066,0.00016438,2]
[353585257,1739940328852,-500.0,0.00016438,2]
[353585258,1739940328876,-500.0,0.00016438,2]
[353585259,1739940328900,-500.0,0.00016438,2]
[353585260,1739940328923,-500.52085353,0.00016438,2]
[353585261,1739940328947,-500.0,0.00016438,2]
[353585262,1739940328973,-500.0,0.00016438,2]
[353585263,1739940328997,-500.0,0.00016438,2]
[353585264,1739940329021,-575.60471392,0.00016438,2]
[353585265,1739940329051,-500.0,0.00016438,2]
[353585266,1739940329076,-500.0,0.00016438,2]
[353585267,1739940329100,-500.0,0.00016438,2]
[353585268,1739940329124,-503.75454402,0.00016438,2]
[353585269,1739940329148,-500.0,0.00016438,2]
[353585270,1739940329173,-500.0,0.00016438,2]
[353585271,1739940329210,-644.79098759,0.00016438,2]
[353585272,1739940329235,-500.0,0.00016438,2]
[353585273,1739940329262,-500.0,0.00016438,2]
[353585274,1739940329287,-500.0,0.00016438,2]
[353585275,1739940329311,-500.0,0.00016438,2]
[353585276,1739940329339,-500.0,0.00016438,2]
[353585277,1739940329365,-500.0,0.00016438,2]
[353585278,1739940329390,-500.0,0.00016438,2]
[353585279,1739940329415,-500.0,0.00016438,2]
[353585280,1739940329439,-500.0,0.00016438,2]
[353585281,1739940329464,-500.0,0.00016438,2]
[353585282,1739940329488,-345.36741326,0.00016438,2]
[353585283,1739940329514,-500.0,0.00016438,2]
[353585284,1739940329538,-500.0,0.00016438,2]
[353585285,1739940329562,-500.0,0.00016438,2]
[353585286,1739940329586,-500.0,0.00016438,2]
[353585287,1739940329609,-500.0,0.00016438,2]
[353585288,1739940329632,-500.0,0.00016438,2]
[353585289,1739940329658,-502.81291931,0.00016438,2]
[353585290,1739940329681,-500.0,0.00016438,2]
[353585291,1739940329703,-500.0,0.00016438,2]
[353585292,1739940329726,-500.81482416,0.00016438,2]
[353585293,1739940329752,-503.64796606,0.00016438,2]
[353585294,1739940329777,-500.0,0.00016438,2]
[353585295,1739940329801,-500.0,0.00016438,2]
[353585296,1739940329824,-500.0,0.00016438,2]
[353585297,1739940329850,-500.0,0.00016438,2]
[353585298,1739940329878,-503.57489642,0.00016438,2]
[353585299,1739940329902,-500.0,0.00016438,2]
[353585300,1739940329925,-500.0,0.00016438,2]
[353585301,1739940329948,-500.0,0.00016438,2]
[353585302,1739940329972,-500.0,0.00016438,2]
[353585303,1739940329998,-500.0,0.00016438,2]
[353585304,1739940330021,-502.04130728,0.00016438,2]
[353585305,1739940330045,-500.0,0.00016438,2]
[353585306,1739940330069,-500.0,0.00016438,2]
[353585307,1739940330093,-500.0,0.00016438,2]
[353585308,1739940330117,-500.0,0.00016438,2]
[353585309,1739940330146,-501.73616143,0.00016438,2]
[353585310,1739940330171,-502.00447461,0.00016438,2]
[353585311,1739940330195,-500.0,0.00016438,2]
[353585312,1739940330220,-500.0,0.00016438,2]
[353585313,1739940330243,-500.0,0.00016438,2]
[353585314,1739940330266,-500.0,0.00016438,2]
[353585315,1739940330289,-500.0,0.00016438,2]
[353585316,1739940330313,-500.0,0.00016438,2]
[353585317,1739940330339,-589.03,0.00016438,2]
[353585318,1739940330362,-500.0,0.00016438,2]
[353585319,1739940330384,-500.0,0.00016438,2]
[353585320,1739940330408,-501.29981468,0.00016438,2]
[353585321,1739940330435,-501.74758246,0.00016438,2]
[353585322,1739940330456,-501.800811,0.00016438,2]
[353585323,1739940330484,-500.0,0.00016438,2]
[353585324,1739940330507,-503.63606594,0.00016438,2]
[353585325,1739940330530,-500.0,0.00016438,2]
[353585326,1739940330552,-503.34978903,0.00016438,2]
[353585327,1739940330575,-500.0,0.00016438,2]
[353585328,1739940330931,-500.0,0.00016438,2]
[353585329,1739940330960,-500.0,0.00016438,2]
[353585330,1739940330986,-500.0,0.00016438,2]
[353585331,1739940331010,-500.0,0.00016438,2]
[353585332,1739940331033,-500.0,0.00016438,2]
[353585333,1739940331055,-500.0,0.00016438,2]
[353585334,1739940331077,-500.0,0.00016438,2]
[353585335,1739940331099,-316.89786698,0.00016438,2]
[353585336,1739940331124,-536.8930487,0.00016438,2]
[353585337,1739940331147,-500.0,0.00016438,2]
[353585338,1739940331171,-500.8939901,0.00016438,2]
[353585339,1739940331195,-500.0,0.00016438,2]
[353585340,1739940331219,-265.19674258,0.00016438,2]
[353585341,1739940331248,-151.0,0.00016438,2]
[353585342,1739940331271,-291.198164,0.00016438,2]
[353585343,1739940331295,-500.0,0.00016438,2]
[353585344,1739940331319,-500.0,0.00016438,2]
[353585345,1739940331345,-500.0,0.00016438,2]
[353585346,1739940331367,-500.0,0.00016438,2]
[353585347,1739940331391,-500.0,0.00016438,2]
[353585348,1739940331412,-500.0,0.00016438,2]
[353585349,1739940331435,-500.0,0.00016438,2]
[353585350,1739940331457,-503.03169642,0.00016438,2]
[353585351,1739940331479,-500.0,0.00016438,2]
[353585352,1739940331503,-500.0,0.00016438,2]
[353585353,1739940331526,-500.0,0.00016438,2]
[353585354,1739940331548,-502.239477,0.00016438,2]
[353585355,1739940331571,-500.0,0.00016438,2]
[353585356,1739940331593,-500.0,0.00016438,2]
[353585357,1739940331616,-500.0,0.00016438,2]
[353585358,1739940331641,-500.0,0.00016438,2]
[353585359,1739940331663,-500.0,0.00016438,2]
[353585360,1739940331685,-500.0,0.00016438,2]
[353585361,1739940331714,-312.97957329,0.00016438,2]
[353585362,1739940331744,-500.0,0.00016438,2]
[353585363,1739940331768,-500.0,0.00016438,2]
[353585364,1739940331792,-500.0,0.00016438,2]
[353585365,1739940331815,-500.0,0.00016438,2]
[353585366,1739940331839,-502.40999389,0.00016438,2]
[353585367,1739940331863,-500.0,0.00016438,2]
[353585368,1739940331887,-500.0,0.00016438,2]
[353585369,1739940331912,-500.0,0.00016438,2]
[353585370,1739940331935,-500.0,0.00016438,2]
[353585371,1739940331959,-500.0,0.00016438,2]
[353585372,1739940331982,-500.0,0.00016438,2]
[353585373,1739940332005,-503.74030038,0.00016438,2]
[353585374,1739940332029,-500.0,0.00016438,2]
[353585375,1739940332052,-286.534933,0.00016438,2]
[353585376,1739940332075,-500.0,0.00016438,2]
[353585377,1739940332097,-500.0,0.00016438,2]
[353585378,1739940332120,-500.0,0.00016438,2]
[353585379,1739940332144,-500.0,0.00016438,2]
[353585380,1739940332167,-500.0,0.00016438,2]
[353585381,1739940332189,-500.0,0.00016438,2]
[353585382,1739940332212,-500.0,0.00016438,2]
[353585383,1739940332234,-729.92,0.00016438,2]
[353585384,1739940332256,-500.75511932,0.00016438,2]
[353585385,1739940332279,-500.0,0.00016438,2]
[353585386,1739940332301,-500.0,0.00016438,2]
[353585387,1739940332324,-500.0,0.00016438,2]
[353585388,1739940332348,-168.110355,0.00016438,2]
[353585389,1739940332369,-438.7361619,0.00016438,2]
[353585390,1739940332391,-500.0,0.00016438,2]
[353585391,1739940332415,-500.0,0.00016438,2]
[353585392,1739940332439,-578.26,0.00016438,2]
[353585393,1739940332462,-500.0,0.00016438,2]
[353585394,1739940332485,-500.0,0.00016438,2]
[353585395,1739940332509,-500.0,0.00016438,2]
[353585396,1739940332532,-500.0,0.00016438,2]
[353585397,1739940332555,-163.680665,0.00016438,2]
[353585398,1739940332577,-500.0,0.00016438,2]
[353585399,1739940332600,-501.52407532,0.00016438,2]
[353585400,1739940332623,-614.35,0.00016438,2]
[353585401,1739940332647,-530.57,0.00016438,2]
[353585402,1739940332670,-500.0,0.00016438,2]
[353585403,1739940332693,-500.0,0.00016438,2]
[353585404,1739940332717,-500.0,0.00016438,2]
[353585405,1739940332741,-681.89,0.00016438,2]
[353585406,1739940332765,-156.366828,0.00016438,2]
[353585407,1739940332787,-500.0,0.00016438,2]
[353585408,1739940332810,-500.0,0.00016438,2]
[353585409,1739940332832,-500.0,0.00016438,2]
[353585410,1739940332856,-467.66035589,0.00016438,2]
[353585411,1739940332879,-500.0,0.00016438,2]
[353585412,1739940332902,-500.0,0.00016438,2]
[353585413,1739940332925,-510.96434589,0.00016438,2]
[353585414,1739940332949,-500.0,0.00016438,2]
[353585415,1739940332972,-614.48,0.00016438,2]
[353585416,1739940332996,-500.0,0.00016438,2]
[353585417,1739940333019,-500.0,0.00016438,2]
[353585418,1739940333043,-500.0,0.00016438,2]
[353585419,1739940333067,-666.96,0.00016438,2]
[353585420,1739940333095,-500.0,0.00016438,2]
[353585421,1739940333118,-500.0,0.00016438,2]
[353585422,1739940333141,-279.3304745,0.00016438,2]
[353585423,1739940333164,-500.0,0.00016438,2]
[353585424,1739940333187,-500.0,0.00016438,2]
[353585425,1739940333210,-507.0427985,0.00016438,2]
[353585426,1739940333234,-500.0,0.00016438,2]
[353585427,1739940333258,-500.0,0.00016438,2]
[353585428,1739940333282,-500.0,0.00016438,2]
[353585429,1739940333306,-500.0,0.00016438,2]
[353585430,1739940333333,-156.562667,0.00016438,2]
[353585431,1739940333360,-524.92684182,0.00016438,2]
[353585432,1739940333384,-500.0,0.00016438,2]
[353585433,1739940333409,-500.0,0.00016438,2]
[353585434,1739940333436,-761.08,0.00016438,2]
[353585435,1739940333460,-500.0,0.00016438,2]
[353585436,1739940333484,-500.0,0.00016438,2]
[353585437,1739940333507,-500.0,0.00016438,2]
[353585438,1739940333531,-500.0,0.00016438,2]
[353585439,1739940333555,-500.0,0.00016438,2]
[353585440,1739940333578,-500.0,0.00016438,2]
[353585441,1739940333602,-500.0,0.00016438,2]
[353585442,1739940333629,-500.0,0.00016438,2]
[353585443,1739940333653,-500.0,0.00016438,2]
[353585444,1739940333678,-500.0,0.00016438,2]
[353585445,1739940333702,-151.0,0.00016438,2]
[353585446,1739940333726,-151.0,0.00016438,2]
[353585447,1739940333751,-151.0,0.00016438,2]
[353585448,1739940333776,-1526.306379,0.00016438,2]
[353585449,1739940333801,-508.19272431,0.00016438,2]
[353585450,1739940333826,-1526.306379,0.00016438,2]
[353585451,1739940333850,-1526.306379,0.00016438,2]
[353585452,1739940333876,-179.917486,0.00016438,2]
[353585453,1739940333901,-500.0,0.00016438,2]
[353585454,1739940333925,-508.28066399,0.00016438,2]
[353585455,1739940333949,-151.0,0.00016438,2]
[353585456,1739940333972,-500.0,0.00016438,2]
[353585457,1739940333997,-151.0,0.00016438,2]
[353585458,1739940334022,-1526.306379,0.00016438,2]
[353585459,1739940334047,-151.0,0.00016438,2]
[353585460,1739940334074,-500.0,0.00016438,2]
[353585461,1739940334098,-1526.306379,0.00016438,2]
[353585462,1739940334121,-151.0,0.00016438,2]
[353585463,1739940334144,-1526.306379,0.00016438,2]
[353585464,1739940334169,-500.91,0.00016438,2]
[353585465,1739940334193,-500.0,0.00016438,2]
[353585466,1739940334217,-151.0,0.00016438,2]
[353585467,1739940334240,-500.0,0.00016438,2]
[353585468,1739940334264,-151.0,0.00016438,2]
[353585469,1739940334286,-500.0,0.00016438,2]
[353585470,1739940334309,-500.0,0.00016438,2]
[353585471,1739940334333,-500.0,0.00016438,2]
[353585472,1739940334361,-151.0,0.00016438,2]
[353585473,1739940334387,-151.0,0.00016438,2]
[353585474,1739940334412,-500.0,0.00016438,2]
[353585475,1739940334442,-501.42163698,0.00016438,2]
[353585476,1739940334466,-501.83581372,0.00016438,2]
[353585477,1739940334490,-500.0,0.00016438,2]
[353585478,1739940334516,-557.46,0.00016438,2]
[353585479,1739940334752,-394.22219245,0.00016438,2]
[353585480,1739940334815,-500.0,0.00016438,2]
[353585481,1739940334839,-514.69,0.00016438,2]
[353585482,1739940334864,-500.0,0.00016438,2]
[353585483,1739940334888,-500.0,0.00016438,2]
[353585484,1739940334911,-500.0,0.00016438,2]
[353585485,1739940334936,-500.0,0.00016438,2]
[353585486,1739940334961,-504.1683852,0.00016438,2]
[353585487,1739940334985,-151.0,0.00016438,2]
[353585488,1739940335008,-195.859718,0.00016438,2]
[353585489,1739940335031,-500.0,0.00016438,2]
[353585490,1739940335054,-500.0,0.00016438,2]
[353585491,1739940335077,-500.0,0.00016438,2]
[353585492,1739940335100,-500.0,0.00016438,2]
[353585493,1739940335123,-500.0,0.00016438,2]
[353585494,1739940335147,-503.36563939,0.00016438,2]
[353585495,1739940335170,-728.06,0.00016438,2]
[353585496,1739940335193,-500.0,0.00016438,2]
[353585497,1739940335216,-500.0,0.00016438,2]
[353585498,1739940335240,-500.0,0.00016438,2]
[353585499,1739940335265,-500.0,0.00016438,2]
[353585500,1739940335289,-500.0,0.00016438,2]
[353585501,1739940335312,-500.0,0.00016438,2]
[353585502,1739940335336,-500.0,0.00016438,2]
[353585503,1739940335361,-500.0,0.00016438,2]
[353585504,1739940335384,-500.0,0.00016438,2]
[353585505,1739940335408,-505.97581493,0.00016438,2]
[353585506,1739940335434,-500.0,0.00016438,2]
[353585507,1739940335457,-500.0,0.00016438,2]
[353585508,1739940335479,-500.0,0.00016438,2]
[353585509,1739940335504,-500.0,0.00016438,2]
[353585510,1739940335526,-379.56414427,0.00016438,2]
[353585511,1739940335549,-500.0,0.00016438,2]
[353585512,1739940335572,-500.0,0.00016438,2]
[353585513,1739940335595,-500.0,0.00016438,2]
[353585514,1739940335619,-500.0,0.00016438,2]
[353585515,1739940335648,-151.0,0.00016438,2]
[353585516,1739940335672,-500.0,0.00016438,2]
[353585517,1739940335696,-151.0,0.00016438,2]
[353585518,1739940335720,-151.0,0.00016438,2]
[353585519,1739940335745,-500.0,0.00016438,2]
[353585520,1739940335769,-500.0,0.00016438,2]
[353585521,1739940335794,-500.0,0.00016438,2]
[353585522,1739940335819,-500.0,0.00016438,2]
[353585523,1739940335843,-500.0,0.00016438,2]
[353585524,1739940335868,-500.0,0.00016438,2]
[353585525,1739940335893,-179.917483,0.00016438,2]
[353585526,1739940335917,-500.9576939,0.00016438,2]
[353585527,1739940335941,-500.0,0.00016438,2]
[353585528,1739940335965,-151.0,0.00016438,2]
[353585529,1739940335989,-151.0,0.00016438,2]
[353585530,1739940336014,-501.62685885,0.00016438,2]
[353585531,1739940336038,-151.0,0.00016438,2]
[353585532,1739940336061,-513.9,0.00016438,2]
[353585533,1739940336085,-500.0,0.00016438,2]
[353585534,1739940336109,-506.84114843,0.00016438,7]
[353585535,1739940336134,-500.0,0.00016438,2]
[353585536,1739940336160,-500.0,0.00016438,2]
[353585537,1739940336185,-500.0,0.00016438,2]
[353585538,1739940336212,-500.0,0.00016438,2]
[353585539,1739940336235,-500.0,0.00016438,2]
[353585540,1739940336260,-500.0,0.00016438,2]
[353585541,1739940336284,-500.0,0.00016438,2]
[353585542,1739940336309,-502.83819409,0.00016438,2]
[353585543,1739940336333,-501.92124402,0.00016438,2]
[353585544,1739940336361,-608.65,0.00016438,2]
[353585545,1739940336386,-500.0,0.00016438,2]
[353585546,1739940336411,-528.87,0.00016438,2]
[353585547,1739940336442,-680.9,0.00016438,2]
[353585548,1739940336467,-500.0,0.00016438,2]
[353585549,1739940336490,-265.56665572,0.00016438,2]
[353585550,1739940336514,-568.49,0.00016438,2]
[353585551,1739940336539,-500.0,0.00016438,2]
[353585552,1739940336562,-500.0,0.00016438,2]
[353585553,1739940336586,-500.0,0.00016438,2]
[353585554,1739940336610,-654.44,0.00016438,2]
[353585555,1739940336639,-563.3,0.00016438,2]
[353585556,1739940336663,-503.84981656,0.00016438,2]
[353585557,1739940336685,-500.0,0.00016438,2]
[353585558,1739940336708,-509.88,0.00016438,2]
[353585559,1739940336732,-500.0,0.00016438,2]
[353585560,1739940336755,-500.0,0.00016438,2]
[353585561,1739940336778,-500.0,0.00016438,2]
[353585562,1739940336800,-204.30885104,0.00016438,2]
[353585563,1739940336823,-500.0,0.00016438,2]
[353585564,1739940336846,-506.6051942,0.00016438,2]
[353585565,1739940336870,-500.0,0.00016438,2]
[353585566,1739940336893,-513.45148956,0.00016438,2]
[353585567,1739940336916,-500.0,0.00016438,2]
[353585568,1739940336940,-500.0,0.00016438,2]
[353585569,1739940336963,-500.0,0.00016438,2]
[353585570,1739940336986,-515.21341065,0.00016438,2]
[353585571,1739940337011,-500.0,0.00016438,2]
[353585572,1739940337035,-503.9014195,0.00016438,2]
[353585573,1739940337058,-500.0,0.00016438,2]
[353585574,1739940337080,-501.29325338,0.00016438,2]
[353585575,1739940337103,-590.47208174,0.00016438,2]
[353585576,1739940337126,-774.85,0.00016438,2]
[353585577,1739940337149,-508.70988177,0.00016438,2]
[353585578,1739940337173,-500.0,0.00016438,2]
[353585579,1739940337197,-156.562666,0.00016438,2]
[353585580,1739940337221,-500.0,0.00016438,2]
[353585581,1739940337245,-600.62,0.00016438,2]
[353585582,1739940337271,-500.0,0.00016438,2]
[353585583,1739940337295,-500.0,0.00016438,2]
[353585584,1739940337320,-500.0,0.00016438,2]
[353585585,1739940337347,-564.68,0.00016438,2]
[353585586,1739940337371,-500.0,0.00016438,2]
[353585587,1739940337395,-500.0,0.00016438,2]
[353585588,1739940337418,-441.72684878,0.00016438,2]
[353585589,1739940337441,-500.0,0.00016438,2]
[353585590,1739940337465,-500.0,0.00016438,2]
[353585591,1739940337492,-500.0,0.00016438,2]
[353585592,1739940337516,-500.0,0.00016438,2]
[353585593,1739940337540,-500.0,0.00016438,2]
[353585594,1739940337563,-500.0,0.00016438,2]
[353585595,1739940337585,-504.69794348,0.00016438,2]
[353585596,1739940337609,-1431.41,0.00016438,2]
[353585597,1739940337634,-500.0,0.00016438,2]
[353585598,1739940337657,-502.1501246,0.00016438,2]
[353585599,1739940337680,-500.0,0.00016438,2]
[353585600,1739940337705,-500.0,0.00016438,2]
[353585601,1739940337728,-193.91572945,0.00016438,2]
[353585602,1739940337753,-501.39754957,0.00016438,2]
[353585603,1739940337777,-500.0,0.00016438,2]
[353585604,1739940337800,-500.0,0.00016438,2]
[353585605,1739940337822,-500.0,0.00016438,2]
[353585606,1739940337845,-500.0,0.00016438,2]
[353585607,1739940337868,-500.0,0.00016438,2]
[353585608,1739940337891,-685.77,0.00016438,2]
[353585609,1739940337914,-500.0,0.00016438,2]
[353585610,1739940337938,-500.0,0.00016438,2]
[353585611,1739940337962,-500.0,0.00016438,2]
[353585612,1739940337984,-500.0,0.00016438,2]
[353585613,1739940338007,-1351.72,0.00016438,2]
[353585614,1739940338031,-500.0,0.00016438,2]
[353585615,1739940338056,-500.0,0.00016438,2]
[353585616,1739940338077,-501.13637971,0.00016438,2]
[353585617,1739940338100,-500.0,0.00016438,2]
[353585618,1739940338123,-500.0,0.00016438,2]
[353585619,1739940338146,-500.0,0.00016438,2]
[353585620,1739940338172,-500.0,0.00016438,2]
[353585621,1739940338198,-500.0,0.00016438,2]
[353585622,1739940338222,-501.31687234,0.00016438,2]
[353585623,1739940338245,-500.0,0.00016438,2]
[353585624,1739940338268,-861.29,0.00016438,2]
[353585625,1739940338291,-500.0,0.00016438,2]
[353585626,1739940338316,-891.51,0.00016438,2]
[353585627,1739940338343,-652.45,0.00016438,2]
[353585628,1739940338368,-500.0,0.00016438,2]
[353585629,1739940338393,-500.0,0.00016438,2]
[353585630,1739940338417,-500.0,0.00016438,2]
[353585631,1739940338672,-501.7931714,0.00016438,2]
[353585632,1739940338699,-512.83,0.00016438,2]
[353585633,1739940338721,-500.0,0.00016438,2]
[353585634,1739940338744,-500.0,0.00016438,2]
[353585635,1739940338769,-500.0,0.00016438,2]
[353585636,1739940338792,-500.0,0.00016438,2]
[353585637,1739940338815,-500.0,0.00016438,2]
[353585638,1739940338838,-500.0,0.00016438,2]
[353585639,1739940338861,-510.86183098,0.00016438,2]
[353585640,1739940338884,-500.0,0.00016438,2]
[353585641,1739940338908,-1382.95,0.00016438,2]
[353585642,1739940338931,-1234.28,0.00016438,2]
[353585643,1739940338955,-500.0,0.00016438,2]
[353585644,1739940338980,-500.0,0.00016438,2]
[353585645,1739940339003,-407.53777323,0.00016438,2]
[353585646,1739940339026,-512.9758638,0.00016438,2]
[353585647,1739940339049,-500.0,0.00016438,2]
[353585648,1739940339072,-309.4655342,0.00016438,2]
[353585649,1739940339094,-500.0,0.00016438,2]
[353585650,1739940339116,-500.0,0.00016438,2]
[353585651,1739940339140,-500.0,0.00016438,2]
[353585652,1739940339163,-500.0,0.00016438,2]
[353585653,1739940339186,-500.0,0.00016438,2]
[353585654,1739940339209,-500.0,0.00016438,2]
[353585655,1739940339231,-511.7,0.00016438,2]
[353585656,1739940339254,-713.68,0.00016438,2]
[353585657,1739940339276,-863.56,0.00016438,2]
[353585658,1739940339300,-1226.42,0.00016438,2]
[353585659,1739940339323,-500.0,0.00016438,2]
[353585660,1739940339348,-500.72898448,0.00016438,2]
[353585661,1739940339374,-746.42,0.00016438,2]
[353585662,1739940339398,-500.0,0.00016438,2]
[353585663,1739940339422,-500.0,0.00016438,2]
[353585664,1739940339446,-500.0,0.00016438,2]
[353585665,1739940339468,-500.0,0.00016438,2]
[353585666,1739940339491,-500.0,0.00016438,2]
[353585667,1739940339514,-500.68579503,0.00016438,2]
[353585668,1739940339537,-500.0,0.00016438,2]
[353585669,1739940339560,-500.0,0.00016438,2]
[353585670,1739940339584,-500.0,0.00016438,2]
[353585671,1739940339609,-842.43,0.00016438,2]
[353585672,1739940339632,-500.0,0.00016438,2]
[353585673,1739940339655,-500.0,0.00016438,2]
[353585674,1739940339679,-607.39,0.00016438,2]
[353585675,1739940339702,-500.0,0.00016438,2]
[353585676,1739940339728,-500.0,0.00016438,2]
[353585677,1739940339752,-500.0,0.00016438,2]
[353585678,1739940339776,-500.0,0.00016438,2]
[353585679,1739940339799,-500.0,0.00016438,2]
[353585680,1739940339823,-3740.28,0.00016438,2]
[353585681,1739940339847,-500.0,0.00016438,2]
[353585682,1739940339872,-500.0,0.00016438,2]
[353585683,1739940339897,-1193.14,0.00016438,2]
[353585684,1739940339922,-508.34578323,0.00016438,2]
[353585685,1739940339946,-500.0,0.00016438,2]
[353585686,1739940339971,-500.0,0.00016438,2]
[353585687,1739940340000,-503.47917641,0.00016438,2]
[353585688,1739940340025,-500.0,0.00016438,2]
[353585689,1739940340049,-500.0,0.00016438,2]
[353585690,1739940340072,-168.23944085,0.00016438,2]
[353585724,1739940632076,-1274.0,0.00014517,2]
[353585726,1739940632086,-509.27,0.00014517,2]
[353585728,1739940632095,-495.52,0.00014517,2]
[353585729,1739940632104,-504.32,0.00014517,2]
[353585730,1739940632113,-490.26,0.00014517,2]
[353585731,1739940632123,-498.53,0.00014517,2]
[353585732,1739940632132,-508.02,0.00014517,2]
[353585733,1739940632141,-503.62,0.00014517,2]
[353585734,1739940632150,-509.23,0.00014517,2]
[353585735,1739940632159,-321.67135128,0.00014517,2]
[353585736,1739940632175,-169.48864872,0.00014517,2]
[353585737,1739940632185,-507.43,0.00014517,2]
[353585738,1739940632194,-491.85,0.00014517,2]
[353585739,1739940632203,-508.18,0.00014517,2]
[353585740,1739940632212,-507.44,0.00014517,2]
[353585741,1739940632222,-492.2,0.00014517,2]
[353585742,1739940632231,-504.88,0.00014517,2]
[353585743,1739940632240,-497.37,0.00014517,2]
[353585744,1739940632250,-509.39,0.00014517,2]
[353585745,1739940632260,-548.76160498,0.00014527,2]
[353585746,1739940632271,-20.23839502,0.00014527,2]
[353585747,1739940632280,-150.0,0.00014527,2]
[353585748,1739940632290,-780.2713731,0.00014527,2]
[353585749,1739940632301,-424.14676912,0.00014527,2]
[353585750,1739940632312,-581.58185778,0.00014527,2]
[353585751,1739940632321,-1031.486,0.00014527,2]
[353585752,1739940632331,-431.71,0.00014527,2]
[353585753,1739940632342,-4025.912,0.00014527,2]
[353585754,1739940632351,-539.0,0.00014527,2]
[353585755,1739940632360,-250.0,0.00014527,2]
[353585756,1739940632369,-170.0,0.00014527,2]
[353585757,1739940632379,-232.0,0.00014527,2]
[353585758,1739940632388,-1014.202,0.00014527,2]
[353585759,1739940632398,-3918.0,0.00014527,2]
[353585760,1739940632407,-150.0,0.00014527,2]
[353585761,1739940632416,-1110.0,0.00014527,2]
[353585762,1739940632428,-3771.0,0.00015,2]
[353585763,1739940632438,-150.0,0.00015448,2]
[353585764,1739940632447,-167.69,0.0001546,2]
[353585765,1739940632456,-1469.89,0.00015541,2]
[353585766,1739940632467,-222.5747,0.00016016,2]
[353585767,1739940632476,-31057.1881,0.00016016,2]
[353585768,1739940632486,-1122.0111342,0.00016109,2]
[353585769,1739940632495,-1092.81057039,0.00016109,2]